bitfinex/quotes_ETHUSD_20260228
["timestamp","ask_amount","ask_price","bid_price","bid_amount"]
[1772278298232,1.97564837,1880.1,1879.4,5.02791307]
[1772278298453,5.65502519,1879.9,1879.4,0.001]
[1772278298653,1.97564837,1879.8,1879.4,0.001]
[1772278298822,4.71764837,1879.8,1879.4,0.001]
[1772278299340,7.96759978,1879.8,1879.1,0.001]
[1772278299541,1.32999946,1879.7,1879.1,0.001]
[1772278301728,6.86170055,1879.7,1879.1,0.001]
[1772278302150,1.32999946,1879.7,1879.1,5.31271306]
[1772278302678,6.5750721,1879.7,1879.1,0.001]
[1772278302824,5.00937628,1879.7,1879.1,0.001]
[1772278303028,5.24507264,1879.6,1879.1,0.001]
[1772278303549,1.32999946,1879.7,1879.1,0.001]
[1772278304155,6.5750721,1879.7,1879.1,0.001]
[1772278304336,6.5750721,1879.7,1879.2,0.001]
[1772278305255,5.24507264,1879.6,1879.2,0.001]
[1772278306736,5.24507264,1879.4,1879.0,0.001]
[1772278306941,5.00951781,1879.5,1879.0,0.001]
[1772278306942,7.99007264,1879.3,1879.0,0.001]
[1772278308959,4.07533484,1879.3,1879.0,0.001]
[1772278310164,8.92444946,1879.2,1878.6,11.80796124]
[1772278310346,5.24507264,1879.1,1878.6,11.80796124]
[1772278310545,5.24507264,1879.1,1878.4,5.53193868]
[1772278310947,6.57556758,1879.0,1878.4,5.53193868]
[1772278311454,5.24507264,1878.8,1878.2,5.53193868]
[1772278312362,8.92444946,1878.8,1878.2,5.53193868]
[1772278312552,5.24507264,1878.7,1878.0,5.53193868]
[1772278313037,6.57585087,1878.6,1878.0,5.53193868]
[1772278313235,2.746,1878.5,1878.0,5.53193868]
[1772278314367,7.99107264,1878.5,1877.8,6.86324208]
[1772278314667,5.24507264,1878.4,1877.8,5.53193868]
[1772278314967,4.07690319,1878.5,1877.8,6.8632801]
[1772278315640,4.07690319,1878.5,1877.6,10.85772025]
[1772278315641,5.24507264,1878.4,1877.6,10.85772025]
[1772278315844,4.07690319,1878.5,1877.7,6.86335477]
[1772278316251,5.24507264,1878.4,1877.7,6.86335477]
[1772278316568,4.07690319,1878.5,1877.7,6.86335477]
[1772278316765,5.24507264,1879.2,1877.7,6.86335477]
[1772278316950,5.24507264,1879.0,1878.3,6.86286018]
[1772278317870,7.98907264,1879.0,1878.3,6.86286018]
[1772278318970,1.33056575,1878.9,1878.3,5.53193868]
[1772278319472,1.33056575,1878.9,1878.3,6.86292105]
[1772278319978,6.57557139,1879.0,1878.3,6.86292105]
[1772278321173,6.57557139,1879.0,1878.3,5.53193868]
[1772278321775,8.92444946,1878.7,1878.0,5.53193868]
[1772278321973,5.24507264,1878.7,1878.0,5.53193868]
[1772278322574,5.24507264,1878.7,1877.9,0.001]
[1772278323075,5.24507264,1878.5,1877.9,0.001]
[1772278323283,5.24507264,1878.4,1877.9,0.001]
[1772278325053,6.57606342,1878.3,1877.6,1.86639049]
[1772278326251,6.57606342,1878.3,1877.6,0.53493868]
[1772278326457,5.24507264,1878.2,1877.6,0.53493868]
[1772278326758,5.24507264,1878.2,1877.4,3.625875]
[1772278327182,6.57620516,1878.1,1877.4,2.29430139]
[1772278327559,9.31720516,1878.1,1877.4,2.29430139]
[1772278327760,9.31720516,1878.1,1877.4,3.6259188]
[1772278328588,9.31720516,1878.1,1877.5,2.30528066]
[1772278330675,5.6034633,1878.0,1877.5,0.001]
[1772278330996,4.07213252,1878.1,1877.5,2.33304794]
[1772278331799,9.67559582,1878.1,1877.5,2.33304794]
[1772278332305,6.93459582,1878.1,1877.6,2.33689292]
[1772278332474,5.32453011,1878.2,1877.7,1.0057604]
[1772278332804,0.002,1878.4,1877.7,1.0057604]
[1772278333372,0.002,1878.4,1877.9,1.0114973]
[1772278333574,0.002,1878.4,1878.0,1.3312034]
[1772278333777,0.002,1878.4,1878.1,1.0114973]
[1772278334445,0.002,1878.7,1878.4,1.05593291]
[1772278335666,2.746,1879.2,1878.3,1.06135956]
[1772278335869,0.002,1879.1,1878.4,1.06135956]
[1772278336278,4.07636261,1879.2,1878.4,1.06135956]
[1772278336497,0.002,1879.1,1878.4,1.06135956]
[1772278337913,0.002,1879.0,1878.6,1.07691464]
[1772278339388,0.002,1879.2,1878.6,1.07691464]
[1772278339787,0.002,1879.2,1878.7,2.41543944]
[1772278339987,5.6054633,1879.2,1878.7,1.08473204]
[1772278340191,2.737,1879.2,1878.2,1.08473204]
[1772278340422,2.737,1879.2,1878.4,1.08473204]
[1772278340584,8.3404633,1879.2,1878.4,1.08473204]
[1772278342116,2.737,1879.2,1878.6,1.12718953]
[1772278343010,9.67082344,1879.2,1878.6,1.12718953]
[1772278343817,5.6034633,1879.1,1878.5,2.46665867]
[1772278343989,5.6034633,1879.1,1878.7,0.001]
[1772278344501,6.9338919,1879.1,1878.7,0.001]
[1772278344709,6.9358919,1879.1,1878.7,0.001]
[1772278344909,5.6054633,1879.1,1878.7,0.001]
[1772278345924,0.002,1879.4,1879.0,5.16584985]
[1772278346229,0.065536,1879.9,1879.2,2.47436949]
[1772278346230,5.6034633,1879.9,1879.2,2.47436949]
[1772278346522,0.002,1879.8,1879.2,2.47436949]
[1772278347691,1.32984418,1880.0,1879.2,1.33035334]
[1772278347692,5.6054633,1879.7,1879.2,1.33035334]
[1772278348020,5.6034633,1879.7,1879.2,1.33035334]
[1772278348225,5.6034633,1879.7,1879.1,5.32141336]
[1772278348226,5.6034633,1879.7,1879.1,6.47354225]
[1772278348523,0.002,1879.6,1879.1,6.47354225]
[1772278348728,0.002,1879.6,1879.2,1.15212889]
[1772278348895,6.93335012,1879.9,1879.2,1.15212889]
[1772278349094,0.002,1879.8,1879.2,1.15212889]
[1772278350207,0.002,1879.8,1879.3,1.33028255]
[1772278352898,0.002,1879.8,1879.3,6.31250187]
[1772278353713,0.002,1879.7,1879.3,6.31250187]
[1772278355922,0.002,1879.7,1879.4,3.83]
[1772278356834,2.735,1880.1,1879.4,3.83]
[1772278356835,0.002,1880.4,1879.6,1.13061176]
[1772278357128,5.6054633,1880.3,1879.7,6.29646161]
[1772278357499,0.002,1880.3,1879.8,1.13061176]
[1772278359005,0.002,1880.0,1879.9,1.32985797]
[1772278359232,0.002,1880.3,1879.9,1.32985797]
[1772278361336,5.41806094,1880.3,1879.4,1.33116232]
[1772278362514,5.29885003,1880.1,1879.4,1.33116232]
[1772278363219,5.29885003,1879.9,1879.4,1.33116232]
[1772278364904,5.29885003,1879.9,1879.4,0.001]
[1772278365105,5.29885003,1879.8,1879.4,0.001]
[1772278365329,5.29885003,1879.6,1879.4,0.001]
[1772278365519,6.62882392,1879.8,1879.4,0.001]
[1772278365719,5.29885003,1879.7,1879.4,0.001]
[1772278367051,5.29885003,1879.7,1879.3,0.001]
[1772278367209,5.29835003,1879.4,1879.1,0.001]
[1772278369949,6.62857099,1879.4,1879.1,0.001]
[1772278370672,6.62857099,1879.4,1879.2,0.001]
[1772278370673,5.29835003,1879.3,1879.2,0.001]
[1772278370965,5.29835003,1879.1,1878.7,0.001]
[1772278371123,5.29835003,1879.1,1879.0,0.001]
[1772278371855,6.62877416,1879.1,1879.0,0.001]
[1772278372358,5.29835003,1879.1,1879.0,0.001]
[1772278372939,5.29785003,1879.0,1878.9,0.001]
[1772278373555,1.33042413,1879.1,1878.9,0.001]
[1772278373938,6.62727416,1879.1,1878.9,0.001]
[1772278374138,5.29685003,1879.0,1878.9,0.001]
[1772278375129,5.29685003,1879.0,1878.7,0.001]
[1772278375749,5.29685003,1878.8,1878.7,0.001]
[1772278376154,6.6274866,1878.8,1878.7,0.001]
[1772278377161,5.29685003,1878.8,1878.7,0.001]
[1772278377672,6.6274866,1878.8,1878.7,0.001]
[1772278377854,5.29685003,1878.7,1878.5,0.001]
[1772278378034,1.33077823,1878.6,1878.5,0.001]
[1772278378764,6.62762826,1878.6,1878.5,0.001]
[1772278378953,9.36062826,1878.6,1878.5,0.001]
[1772278379257,9.36062826,1878.6,1878.4,0.001]
[1772278380660,5.29685003,1878.5,1877.6,2.34689865]
[1772278380965,5.29685003,1878.5,1877.5,1.33250601]
[1772278381166,5.29685003,1878.5,1877.5,0.001]
[1772278381371,5.29635003,1878.2,1877.5,0.001]
[1772278381572,5.16584985,1878.3,1877.5,0.001]
[1772278381573,5.29635003,1878.0,1877.5,0.001]
[1772278381938,2.735,1878.1,1877.5,0.001]
[1772278381939,2.735,1878.1,1877.5,2.33765805]
[1772278382137,5.29635003,1878.0,1877.5,1.33255072]
[1772278382474,5.29635003,1878.0,1877.5,0.001]
[1772278382678,5.29635003,1877.8,1877.5,0.001]
[1772278384570,5.29635003,1878.0,1877.5,0.001]
[1772278384757,1.33120992,1878.0,1877.5,0.001]
[1772278384961,5.29635003,1877.9,1877.5,0.001]
[1772278386843,5.29635003,1877.7,1877.5,0.001]
[1772278389249,6.62776879,1877.7,1877.5,0.001]
[1772278390574,12.24270856,1877.9,1877.5,0.001]
[1772278390740,6.65697169,1877.8,1877.5,0.001]
[1772278390948,12.24270856,1878.0,1877.5,0.96038068]
[1772278391172,12.24270856,1878.0,1877.6,1.331487]
[1772278391850,6.65697169,1878.0,1877.6,1.331487]
[1772278392164,7.98817567,1878.0,1877.5,2.29188187]
[1772278392544,6.65697169,1878.0,1877.5,2.29188187]
[1772278392963,7.98818215,1878.0,1877.5,2.29188187]
[1772278393666,13.57391902,1878.0,1877.5,1.33250119]
[1772278393976,5.58573687,1877.9,1877.5,1.33254447]
[1772278395550,12.24270856,1877.8,1877.5,0.001]
[1772278395759,5.58573687,1877.7,1877.5,0.001]
[1772278397163,6.65697169,1877.6,1877.5,0.001]
[1772278397556,13.57419556,1877.6,1877.5,0.001]
[1772278397759,12.24270856,1877.6,1877.5,0.001]
[1772278398674,13.57419556,1877.6,1877.5,0.001]
[1772278399580,12.24270856,1877.6,1877.5,0.001]
[1772278399883,13.57419556,1877.6,1877.5,0.001]
[1772278401369,7.98845869,1877.6,1877.3,0.001]
[1772278401570,12.24270856,1877.5,1877.3,0.001]
[1772278402777,13.574269,1877.5,1877.3,0.001]
[1772278402981,12.24270856,1877.4,1877.3,0.001]
[1772278403456,12.24270856,1877.4,1877.0,0.001]
[1772278403457,5.58573687,1877.4,1877.0,0.001]
[1772278403658,6.91742894,1877.4,1877.0,0.001]
[1772278404665,12.24270856,1877.4,1877.0,0.001]
[1772278407084,8.34773687,1877.6,1877.0,1.09651647]
[1772278407266,8.34773687,1877.6,1876.9,0.001]
[1772278407267,5.58573687,1877.3,1876.9,0.001]
[1772278407475,5.58573687,1877.1,1876.9,0.001]
[1772278407899,12.24170856,1877.0,1876.9,0.001]
[1772278408578,5.58573687,1877.0,1876.7,0.001]
[1772278408779,12.24170856,1876.9,1876.7,0.001]
[1772278408957,5.58573687,1876.9,1876.7,0.001]
[1772278409158,2.764,1877.1,1876.7,0.001]
[1772278409388,6.65597169,1877.0,1876.7,0.001]
[1772278410288,12.24170856,1877.0,1876.7,0.001]
[1772278410477,6.65597169,1876.9,1876.8,0.001]
[1772278411489,0.002,1877.9,1876.9,5.31544403]
[1772278411675,1.33332944,1877.9,1877.1,5.31544403]
[1772278411883,2.768,1877.8,1877.1,5.31544403]
[1772278412057,6.91715296,1877.7,1877.0,1.33185126]
[1772278413675,6.91715296,1877.7,1876.9,6.64737393]
[1772278418904,6.91715296,1877.7,1876.9,10.47737393]
[1772278422575,6.91715296,1877.7,1876.9,5.1619299]
[1772278422888,6.91715296,1877.7,1877.0,0.001]
[1772278423199,5.79191457,1877.5,1877.0,0.001]
[1772278423403,8.55591457,1877.4,1877.0,0.001]
[1772278423702,9.88757712,1877.4,1877.0,0.001]
[1772278424803,5.79191457,1877.3,1877.0,0.001]
[1772278425775,1.33177072,1877.2,1877.0,0.001]
[1772278426281,7.12368529,1877.2,1877.0,0.001]
[1772278427606,7.12368529,1877.2,1876.9,3.831]
[1772278428105,7.12368529,1877.2,1876.9,0.001]
[1772278428683,4.09563201,1877.4,1876.9,5.45544847]
[1772278428877,2.764,1877.4,1877.0,9.14319913]
[1772278429593,2.764,1877.4,1877.1,5.45444847]
[1772278430403,2.764,1877.4,1877.1,6.78628966]
[1772278430604,2.764,1877.4,1877.1,5.45444847]
[1772278430804,2.764,1877.4,1877.1,6.78627553]
[1772278431123,2.764,1877.4,1877.0,1.3318679]
[1772278431415,2.764,1877.4,1877.1,5.45444847]
[1772278431811,2.764,1877.4,1877.0,5.02061856]
[1772278432116,2.764,1877.4,1877.0,1.3318679]
[1772278432517,9.8875625,1877.4,1876.9,6.78738094]
[1772278432706,9.8875625,1877.4,1876.9,1.33293247]
[1772278432901,8.55591457,1877.4,1876.9,6.78738094]
[1772278433416,2.764,1877.4,1876.9,6.78738094]
[1772278433985,2.764,1877.4,1877.0,5.45444847]
[1772278435313,2.764,1877.4,1877.0,6.78730539]
[1772278435610,0.002,1877.3,1877.0,6.78730539]
[1772278436921,0.002,1877.3,1877.0,10.61730539]
[1772278437092,0.002,1877.3,1877.1,5.45444847]
[1772278438309,0.002,1877.6,1877.2,10.47496985]
[1772278438622,2.773,1877.6,1877.2,10.47496985]
[1772278438990,2.773,1877.6,1877.3,4.09105369]
[1772278439311,2.773,1877.6,1877.2,1.33177072]
[1772278440017,2.773,1877.6,1877.2,5.16177072]
[1772278440222,5.79191457,1877.5,1877.2,3.83]
[1772278440396,4.10449973,1877.6,1877.2,3.83]
[1772278440397,9.89644035,1877.6,1877.2,3.83]
[1772278440591,9.89644035,1877.6,1877.2,5.16176145]
[1772278440901,9.89644035,1877.6,1877.2,3.83]
[1772278441097,4.10449082,1877.6,1877.2,9.22918159]
[1772278441331,4.10449082,1877.6,1877.2,7.8974192]
[1772278441517,2.773,1877.6,1877.2,9.2291824]
[1772278441719,2.773,1877.6,1877.3,4.0674192]
[1772278442544,2.773,1877.6,1877.3,5.39909485]
[1772278442707,2.773,1877.6,1877.3,4.0674192]
[1772278443034,5.79191457,1877.5,1877.2,3.83]
[1772278443427,5.79191457,1877.5,1877.0,0.001]
[1772278445302,1.33162884,1877.4,1877.0,0.001]
[1772278445502,5.79191457,1877.3,1877.0,0.001]
[1772278445809,8.56491457,1877.3,1877.0,0.001]
[1772278447338,5.79191457,1877.2,1877.0,0.001]
[1772278449118,5.79191457,1877.2,1877.1,0.001]
[1772278451223,7.12368529,1877.2,1876.9,0.001]
[1772278452239,7.12368529,1877.2,1876.8,0.001]
[1772278452240,5.41464585,1877.1,1876.8,0.001]
[1772278452461,8.19164585,1877.0,1876.8,0.001]
[1772278452615,5.41464585,1876.9,1876.8,0.001]
[1772278455320,6.74662943,1876.9,1876.8,0.001]
[1772278456650,6.74662943,1876.9,1876.6,0.001]
[1772278457126,5.41464585,1876.9,1876.6,0.001]
[1772278457631,2.777,1877.0,1876.6,0.001]
[1772278457828,4.10891718,1877.0,1876.6,0.001]
[1772278458239,9.52356303,1877.0,1876.6,0.001]
[1772278459450,5.41464585,1876.9,1876.6,0.001]
[1772278461716,6.74668193,1876.9,1876.7,0.001]
[1772278462128,6.74868193,1876.9,1876.7,0.001]
[1772278462453,6.74868193,1876.9,1876.5,0.001]
[1772278463041,0.002,1876.9,1876.5,3.85281592]
[1772278463241,1.33399177,1876.9,1876.5,3.85281592]
[1772278463454,6.74863762,1876.9,1876.5,3.85281592]
[1772278464149,5.41664585,1876.9,1876.5,5.18506128]
[1772278464325,6.74863146,1876.9,1876.5,3.85281592]
[1772278465748,6.74863146,1876.9,1876.5,0.001]
[1772278472649,0.002,1876.9,1876.5,3.75708923]
[1772278473028,2.779,1877.0,1876.8,3.73902335]
[1772278475031,2.792,1877.1,1876.9,5.04123685]
[1772278477438,2.792,1877.1,1877.0,3.76081229]
[1772278480050,2.792,1877.1,1876.6,5.32873867]
[1772278480051,5.41464585,1876.6,1875.9,3.71700721]
[1772278480227,5.41464585,1876.6,1875.7,5.33129261]
[1772278480228,2.792,1876.5,1875.8,3.71700721]
[1772278480426,2.792,1876.5,1875.9,3.70917681]
[1772278481957,9.70609702,1876.5,1876.1,3.69497922]
[1772278482159,8.37381358,1876.5,1876.0,1.33358879]
[1772278482857,8.37381358,1876.5,1876.0,4.99281543]
[1772278484865,9.70608216,1876.5,1876.0,4.99281543]
[1772278485843,8.37381358,1876.5,1876.0,4.99281543]
[1772278486445,8.37381358,1876.5,1876.0,4.99181543]
[1772278487168,8.37381358,1876.5,1876.1,0.001]
[1772278487461,8.37381358,1876.5,1876.1,0.002]
[1772278488544,9.70608292,1876.5,1876.1,0.002]
[1772278489067,5.32903649,1876.4,1876.1,0.002]
[1772278490265,8.12103649,1876.5,1876.1,3.56625765]
[1772278491677,8.12103649,1876.5,1876.1,4.89878278]
[1772278491845,9.45330462,1876.5,1876.1,4.89878278]
[1772278493545,8.12103649,1876.5,1876.1,4.89878278]
[1772278495978,5.32903649,1876.4,1876.1,4.89878278]
[1772278497047,5.32903649,1876.4,1876.1,0.002]
[1772278497646,5.32903649,1876.4,1875.8,4.16679429]
[1772278497647,5.32903649,1876.3,1875.8,4.16679429]
[1772278497975,5.32903649,1876.3,1875.9,0.001]
[1772278500584,5.32903649,1876.2,1875.9,0.001]
[1772278501284,5.32903649,1876.2,1876.0,0.001]
[1772278503387,6.66342581,1876.4,1876.1,0.001]
[1772278503587,5.32903649,1876.3,1876.1,0.001]
[1772278505772,5.32903649,1876.2,1876.1,0.001]
[1772278505961,5.32903649,1876.2,1876.0,0.001]
[1772278509461,0.002,1876.4,1876.2,3.33133632]
[1772278509664,0.002,1876.4,1876.2,2.63802703]
[1772278510204,5.33103649,1876.4,1876.0,3.96061146]
[1772278511401,5.33103649,1876.4,1876.0,0.001]
[1772278511590,5.33103649,1876.4,1875.9,2.83406715]
[1772278512101,5.38675874,1876.2,1875.9,0.001]
[1772278512296,5.38675874,1876.0,1875.9,0.001]
[1772278512665,5.38675874,1876.3,1875.9,3.73129646]
[1772278513091,5.38675874,1876.3,1875.9,2.6226094]
[1772278513283,5.38675874,1876.3,1875.9,3.36170998]
[1772278513481,5.38675874,1876.3,1875.9,0.001]
[1772278513687,5.38675874,1876.3,1875.9,1.33369339]
[1772278513997,5.38675874,1876.3,1875.9,2.61184943]
[1772278514197,6.71919885,1876.3,1875.9,2.61184943]
[1772278515603,6.71919885,1876.3,1875.9,0.001]
[1772278515981,6.71919885,1876.3,1876.0,0.001]
[1772278516395,6.72119885,1876.3,1876.0,0.001]
[1772278516816,5.38875874,1876.3,1876.0,0.001]
[1772278517883,6.72117193,1876.3,1876.0,0.001]
[1772278518288,6.72117337,1876.3,1876.0,0.001]
[1772278518714,6.72117337,1876.3,1875.9,0.001]
[1772278518915,5.38675874,1876.0,1875.9,0.001]
[1772278519114,8.19175874,1876.0,1875.9,0.001]
[1772278521315,8.19175874,1876.0,1875.3,1.3330839]
[1772278521316,5.38675874,1875.9,1875.3,1.3330839]
[1772278521491,5.38675874,1875.9,1875.3,4.6002047]
[1772278521819,5.38675874,1875.7,1875.1,3.2671208]
[1772278522114,4.1376226,1876.0,1875.1,3.2671208]
[1772278522115,8.19275874,1875.6,1875.1,3.2671208]
[1772278522521,2.806,1875.6,1875.3,0.73910058]
[1772278522894,2.806,1875.6,1875.1,0.73910058]
[1772278523337,9.52572832,1875.6,1875.2,2.51787595]
[1772278523930,5.38675874,1875.5,1874.9,4.57019717]
[1772278524298,5.38675874,1875.5,1874.9,3.2367955]
[1772278524694,5.38675874,1875.5,1874.9,0.73910058]
[1772278524897,5.38675874,1875.5,1874.8,3.22679614]
[1772278525705,5.38675874,1875.3,1874.8,4.56023091]
[1772278526818,5.38675874,1875.3,1874.8,0.73910058]
[1772278526994,8.19175874,1875.2,1874.8,0.73910058]
[1772278527416,8.19175874,1875.2,1874.7,3.80143732]
[1772278527417,5.38675874,1875.1,1874.7,3.80143732]
[1772278529123,5.33243354,1875.4,1875.0,3.18743055]
[1772278529124,5.38675874,1875.4,1875.0,3.18743055]
[1772278529342,6.71981132,1875.4,1875.0,3.18743055]
[1772278529623,5.38675874,1875.4,1875.0,3.18743055]
[1772278530820,5.33077037,1876.1,1875.0,3.18743055]
[1772278530821,5.33220627,1876.2,1875.3,2.42899517]
[1772278531021,5.38675874,1875.8,1875.3,2.42899517]
[1772278531224,5.38675874,1875.8,1875.0,2.0724271]
[1772278531225,6.12585932,1875.6,1875.0,1.33332652]
[1772278531401,2.806,1875.6,1875.3,2.42899517]
[1772278531903,2.806,1875.6,1875.4,3.19739615]
[1772278532103,2.805,1875.9,1875.4,3.19739615]
[1772278532325,8.26374924,1875.9,1875.4,4.53040896]
[1772278532830,5.45874924,1875.8,1875.4,4.53040896]
[1772278533133,6.7917723,1875.8,1875.3,1.33306892]
[1772278533327,1.33302306,1875.7,1875.3,1.33306892]
[1772278533635,1.33302306,1875.7,1875.3,1.39710551]
[1772278533817,5.45874924,1875.8,1875.4,0.73910058]
[1772278534023,1.33302306,1875.7,1875.4,0.73910058]
[1772278534833,1.33302306,1875.7,1875.4,2.07208294]
[1772278535915,1.33267775,1876.0,1875.5,0.04052342]
[1772278536116,6.79142699,1876.0,1875.5,0.04052342]
[1772278536708,9.5967723,1875.9,1875.5,0.04052342]
[1772278536926,9.5967723,1875.9,1875.5,1.37344585]
[1772278537444,10.92946943,1875.9,1875.5,0.04052342]
[1772278537645,10.92946943,1875.9,1875.4,2.07209097]
[1772278537950,1.33302306,1875.8,1875.4,2.07209097]
[1772278539450,0.002,1876.2,1875.7,0.73910058]
[1772278539650,0.002,1876.2,1875.9,0.73910058]
[1772278540835,1.33449188,1876.2,1875.8,0.05479081]
[1772278541035,0.002,1876.2,1875.8,1.38755367]
[1772278542916,5.47709009,1876.2,1875.8,1.3327551]
[1772278543154,6.80957531,1876.2,1875.4,1.36127803]
[1772278543346,6.80957531,1876.2,1875.5,0.02822909]
[1772278544879,5.47709009,1876.1,1875.5,0.02822909]
[1772278545081,2.806,1876.0,1875.7,0.01291049]
[1772278547450,2.806,1876.0,1875.7,1.33280327]
[1772278548071,2.806,1876.0,1875.8,2.83306715]
[1772278548273,0.002,1876.1,1875.9,2.83306715]
[1772278549971,0.002,1876.3,1875.8,3.69596316]
[1772278552169,0.002,1876.3,1875.9,1.33269364]
[1772278554082,0.002,1876.3,1876.1,1.33255156]
[1772278554279,0.002,1876.3,1876.1,4.16561871]
[1772278555284,0.002,1876.5,1876.2,6.52903031]
[1772278555483,0.002,1876.5,1876.2,2.83306715]
[1772278556198,0.002,1876.5,1876.3,1.33240952]
[1772278558201,0.002,1876.5,1876.2,4.16554324]
[1772278559271,0.002,1876.4,1876.2,4.16554324]
[1772278560192,0.002,1876.4,1876.3,2.83306715]
[1772278561003,0.002,1876.4,1876.0,0.001]
[1772278561004,5.47709009,1876.4,1876.0,0.001]
[1772278562576,6.80949253,1876.4,1876.0,0.001]
[1772278562784,5.47709009,1876.4,1876.0,0.001]
[1772278563310,6.80942877,1876.4,1876.0,0.001]
[1772278564403,5.09569988,1876.3,1876.0,0.001]
[1772278564606,5.09569988,1876.1,1876.0,0.001]
[1772278564779,7.89569988,1876.1,1876.0,0.001]
[1772278565177,5.09569988,1876.0,1875.7,0.001]
[1772278566610,6.4283299,1876.0,1875.7,0.001]
[1772278566909,6.4283299,1876.0,1875.4,0.001]
[1772278566910,5.09569988,1875.9,1875.4,0.001]
[1772278567084,1.33263002,1876.0,1875.3,0.001]
[1772278567085,5.09569988,1875.4,1875.3,0.001]
[1772278567311,7.89669988,1875.4,1875.3,0.001]
[1772278567895,2.801,1875.4,1875.3,0.001]
[1772278568214,2.801,1875.4,1875.0,2.78131082]
[1772278568722,5.09569988,1875.2,1874.7,0.64113834]
[1772278569023,2.07217476,1875.3,1874.9,3.51054323]
[1772278569024,1.33312003,1875.3,1874.9,3.51054323]
[1772278569321,1.33312003,1875.3,1874.7,3.41262684]
[1772278569322,5.09569988,1875.2,1874.7,3.41262684]
[1772278569523,5.09569988,1875.2,1874.7,0.64113834]
[1772278569820,5.09569988,1875.2,1874.7,3.41262684]
[1772278570019,4.13412003,1875.3,1874.8,2.76642135]
[1772278572319,2.801,1875.3,1874.9,2.75801795]
[1772278572520,4.13413177,1875.3,1874.9,2.75801795]
[1772278573718,9.13802377,1875.3,1874.9,2.75801795]
[1772278574095,9.13802377,1875.3,1874.9,0.001]
[1772278574512,5.003892,1875.2,1874.9,0.001]
[1772278575360,6.33715422,1875.1,1874.9,0.001]
[1772278576233,6.33715422,1875.1,1874.8,0.001]
[1772278578419,5.003892,1875.0,1874.8,0.001]
[1772278578620,2.811,1874.9,1874.8,0.001]
[1772278580539,4.14440444,1874.9,1874.8,0.001]
[1772278582556,2.811,1874.9,1874.8,0.001]
[1772278582859,0.10277186,1874.9,1874.8,2.70760145]
[1772278584664,0.0065052,1874.9,1874.8,2.70760145]
[1772278585230,0.0065052,1874.9,1874.8,4.04107702]
[1772278585553,2.814,1875.2,1874.9,0.06827359]
[1772278586145,0.002,1875.1,1874.9,0.06827359]
[1772278587260,0.002,1875.1,1874.8,0.001]
[1772278587757,0.002,1875.1,1874.8,0.06567531]
[1772278588347,5.41417058,1875.1,1874.8,0.001]
[1772278590968,5.41217058,1875.0,1874.6,0.001]
[1772278591183,5.41217058,1875.0,1874.6,1.33461448]
[1772278591471,5.41217058,1875.0,1874.6,0.001]
[1772278592766,6.7455271,1875.0,1874.6,0.001]
[1772278593351,5.41167058,1874.6,1873.6,0.04319445]
[1772278593540,5.41167058,1874.6,1873.9,1.11009774]
[1772278593541,5.41167058,1874.5,1873.9,1.11009774]
[1772278593737,6.52176832,1874.5,1873.6,0.04319445]
[1772278594136,6.52176832,1874.5,1873.5,2.44449859]
[1772278594453,5.41167058,1874.5,1873.9,1.14853316]
[1772278595192,5.41167058,1874.5,1873.9,1.11009774]
[1772278595343,6.74536669,1874.5,1874.0,1.30740657]
[1772278595896,5.41167058,1874.5,1874.0,1.3370934]
[1772278596055,5.41167058,1874.5,1874.1,0.02968683]
[1772278596246,2.814,1874.6,1874.1,0.02968683]
[1772278597571,2.814,1874.6,1874.2,1.33390246]
[1772278597868,0.001,1874.5,1874.2,1.33390246]
[1772278598565,5.41267058,1874.5,1874.1,1.33391942]
[1772278598765,5.41267058,1874.5,1874.0,1.33509645]
[1772278599140,0.001,1874.5,1874.1,0.01533268]
[1772278599570,0.001,1874.5,1874.2,1.33390246]
[1772278600065,5.41267058,1874.5,1874.2,1.33390246]
[1772278602365,5.41267058,1874.5,1874.1,5.33586225]
[1772278602566,5.41267058,1874.5,1874.0,1.33509584]
[1772278602567,6.74636046,1874.5,1874.0,1.33509584]
[1772278602766,6.74637196,1874.5,1874.0,1.33509584]
[1772278604285,6.74636677,1874.5,1874.0,1.33514438]
[1772278604472,6.74636677,1874.5,1874.0,0.0011]
[1772278604666,6.74636677,1874.5,1874.0,1.33513483]
[1772278606697,5.41267058,1874.5,1874.0,1.33513483]
[1772278607110,6.74636362,1874.5,1874.0,0.0011]
[1772278612103,6.74637443,1874.5,1874.0,0.0011]
[1772278613382,5.41112058,1874.4,1873.9,0.0011]
[1772278613587,5.41112058,1874.2,1873.9,0.0011]
[1772278613778,5.41112058,1874.1,1873.9,0.0011]
[1772278614702,2.82,1874.2,1873.9,0.0011]
[1772278615402,5.41112058,1874.1,1873.9,0.0011]
[1772278616406,2.82,1874.2,1873.9,0.0011]
[1772278616907,8.23112058,1874.2,1873.9,0.0011]
[1772278617400,9.56504253,1874.2,1873.9,0.0011]
[1772278617708,8.23112058,1874.2,1873.9,0.0011]
[1772278618192,9.56503271,1874.2,1873.9,0.0011]
[1772278618400,5.41112058,1874.1,1873.7,0.0011]
[1772278619109,4.15391213,1874.2,1873.7,0.0011]
[1772278619589,9.56448271,1874.2,1873.7,0.0011]
[1772278619786,8.23057058,1874.2,1873.7,0.0011]
[1772278620201,8.23057058,1874.2,1873.7,3.8311]
[1772278620924,8.23057058,1874.2,1873.8,1.33418721]
[1772278621810,8.23057058,1874.2,1873.8,1.33518721]
[1772278622125,5.41057058,1874.1,1873.8,0.001]
[1772278624606,6.74455723,1874.1,1873.8,0.001]
[1772278625629,6.74455723,1874.1,1873.7,0.0011]
[1772278626211,6.74455723,1874.1,1873.3,1.33453781]
[1772278627504,6.74455723,1874.1,1873.2,5.33842802]
[1772278627907,5.41057058,1874.1,1873.4,5.18468158]
[1772278628423,5.41057058,1874.1,1873.2,5.33842802]
[1772278628812,2.82,1874.2,1873.4,5.18468158]
[1772278629421,1.33580155,1874.4,1873.5,3.77140085]
[1772278629422,0.002,1874.4,1873.5,3.77140085]
[1772278630212,6.74583874,1874.4,1873.5,3.77140085]
[1772278630733,6.74583874,1874.4,1873.5,1.33440085]